fUSD/lending_fUSD_20240117
["ID","MTS","AMOUNT","RATE_DAILY","PERIOD"]
[311862651,1705476695363,-9115.9290582,0.00023287,2]
[311862652,1705476695384,-1543.32883663,0.00023287,2]
[311862653,1705476695405,-1572.90815554,0.00023287,2]
[311862654,1705476695794,-500.0,0.00021917,2]
[311862655,1705476695804,-500.0,0.0002219,2]
[311862656,1705476695813,-500.0,0.00022191,2]
[311862657,1705476695823,-2889.54246964,0.00022439,2]
[311862658,1705476695833,-500.0,0.00022464,2]
[311862659,1705476695843,-500.0,0.00022465,2]
[311862660,1705476695853,-500.0,0.00022738,2]
[311862661,1705476695864,-500.0,0.00022739,2]
[311862662,1705476695874,-500.0,0.00022739,2]
[311862663,1705476695884,-189.12,0.00023012,2]
[311862664,1705476695895,-156.65751266,0.00023013,2]
[311862665,1705476695904,-500.0,0.00023013,2]
[311862666,1705476695914,-2233.70230413,0.00023287,2]
[311862667,1705476695925,-2836.0,0.00023287,2]
[311862668,1705476695934,-3534.13,0.00023287,2]
[311862669,1705476695944,-1156.16,0.00023287,2]
[311862670,1705476695953,-1508.99,0.00023287,2]
[311862671,1705476695963,-500.0,0.00023287,2]
[311862672,1705476695972,-1739.73,0.00023287,2]
[311862673,1705476695983,-1188.49,0.00023287,2]
[311862674,1705476695994,-500.0,0.00023287,2]
[311862675,1705476696004,-1231.27347092,0.00023287,2]
[311862676,1705476696016,-1374.79618899,0.00023287,2]
[311862677,1705476696029,-806.90034009,0.00023287,2]
[311862678,1705476696039,-244.64665991,0.00023287,2]
[311862679,1705476696058,-70.84334009,0.00023287,2]
[311862680,1705476696068,-302.61433928,0.00023287,2]
[311862681,1705476696080,-4278.56830081,0.00023287,2]
[311862682,1705476696093,-592.53143083,0.00023287,2]
[311862683,1705476696136,-8539.0,0.00023287,2]
[311862684,1705476696249,-523.7000001,0.00023287,2]
[311862685,1705476696261,-471.06540919,0.00023287,2]
[311862686,1705476696285,-500.0,0.00023287,2]
[311862687,1705476696316,-500.0,0.00021917,2]
[311862688,1705476696326,-6243.90894464,0.00023287,2]
[311862689,1705476697523,-278.0072,0.00021916,2]
[311862690,1705476697956,-192.61472402,0.00021916,2]
[311862691,1705476697965,-501.12426457,0.00021917,2]
[311862692,1705476697974,-3034.1,0.00021917,2]
[311862693,1705476697984,-500.0,0.00021917,2]
[311862694,1705476697993,-500.0,0.00021917,2]
[311862695,1705476698002,-500.0,0.00021917,2]
[311862696,1705476698011,-500.0,0.00021917,2]
[311862697,1705476698021,-500.0,0.00021917,2]
[311862698,1705476698031,-500.0,0.00021917,2]
[311862699,1705476698041,-500.0,0.0002219,2]
[311862700,1705476698052,-500.0,0.00022191,2]
[311862701,1705476698061,-3034.1,0.00022191,2]
[311862702,1705476698070,-500.0,0.00022191,2]
[311862703,1705476698079,-565.68,0.00022191,2]
[311862704,1705476698088,-500.0,0.00022191,2]
[311862705,1705476698097,-500.0,0.00022464,2]
[311862706,1705476698106,-500.0,0.00022465,2]
[311862707,1705476698115,-3034.1,0.00022465,2]
[311862708,1705476698124,-500.0,0.00022465,2]
[311862709,1705476698133,-590.46,0.00022465,2]
[311862710,1705476698142,-500.0,0.00022739,2]
[311862711,1705476698153,-3034.1,0.00022739,2]
[311862712,1705476698162,-500.0,0.00022739,2]
[311862713,1705476698172,-160.83536735,0.000229,2]
[311862714,1705476698181,-500.0,0.00022986,2]
[311862715,1705476698191,-500.0,0.00022988,2]
[311862716,1705476698200,-562.82,0.00023013,2]
[311862717,1705476698209,-3034.1,0.00023013,2]
[311862718,1705476698218,-601.27,0.00023013,2]
[311862719,1705476698228,-500.0,0.0002326,2]
[311862720,1705476698238,-500.0,0.00023262,2]
[311862721,1705476698248,-10132.56157515,0.00023287,2]
[311862722,1705476698258,-2106.23,0.00023287,2]
[311862723,1705476698268,-500.0,0.00023287,2]
[311862724,1705476698278,-2342.46,0.00023287,2]
[311862725,1705476698287,-3068.01,0.00023287,2]
[311862726,1705476698297,-2931.11,0.00023287,2]
[311862727,1705476698307,-1279.05,0.00023287,2]
[311862728,1705476698316,-1974.83,0.00023287,2]
[311862729,1705476698327,-500.0,0.00023287,2]
[311862730,1705476698337,-905.62,0.00023287,2]
[311862731,1705476698347,-673.74,0.00023287,2]
[311862732,1705476698357,-924.31,0.00023287,2]
[311862733,1705476698366,-723.73,0.00023287,2]
[311862734,1705476698376,-7135.45,0.00023287,2]
[311862735,1705476698385,-3841.98,0.00023287,2]
[311862736,1705476698397,-1202.06,0.00023287,2]
[311862737,1705476698412,-500.0,0.00023287,2]
[311862738,1705476698421,-1235.21,0.00023287,2]
[311862739,1705476698430,-1240.2,0.00023287,2]
[311862740,1705476698441,-2033.72,0.00023287,2]
[311862741,1705476698452,-2621.03,0.00023287,2]
[311862742,1705476698461,-8444.95,0.00023287,2]
[311862743,1705476698471,-2575.29,0.00023287,2]
[311862744,1705476698482,-5865.12,0.00023287,2]
[311862745,1705476698492,-1735.37,0.00023287,2]
[311862746,1705476698502,-2471.03,0.00023287,2]
[311862747,1705476698511,-1561.45,0.00023287,2]
[311862748,1705476698521,-2739.39,0.00023287,2]
[311862749,1705476698530,-2736.94,0.00023287,2]
[311862750,1705476698539,-2612.65,0.00023287,2]
[311862751,1705476698549,-774.71,0.00023287,2]
[311862752,1705476698559,-500.0,0.00023287,2]
[311862753,1705476698569,-540.68,0.00023287,2]
[311862754,1705476698578,-586.29,0.00023287,2]
[311862755,1705476698587,-3538.98,0.00023287,2]
[311862756,1705476698596,-1291.61,0.00023287,2]
[311862757,1705476698605,-2459.71791426,0.00023287,2]
[311862758,1705476698618,-932.14062538,0.00023287,2]
[311862759,1705476698630,-620.89146036,0.00023287,2]
[311862760,1705476698639,-536.83,0.00023287,2]
[311862761,1705476698649,-709.89,0.00023287,2]
[311862762,1705476698659,-1954.09,0.00023287,2]
[311862763,1705476698669,-1281.42133969,0.00023287,2]
[311862764,1705476698681,-243.40866031,0.00023287,2]
[311862765,1705476698691,-729.03403281,0.00023287,2]
[311862766,1705476703077,1000.0,0.00022,22]
[311862767,1705476715577,164.29,0.00019662,2]
[311862768,1705476743141,500.0,0.00021917,7]
[311862769,1705476764880,177.46,0.00021168,10]
[311862770,1705476794759,49201.39446024,0.0003,120]
[311862771,1705476869922,500.0,0.000215,7]
[311862772,1705476872056,1000.0,0.000216,7]
[311862773,1705476874146,1500.0,0.000217,7]
[311862774,1705476876251,807.76545912,0.000218,7]
[311862775,1705476933799,27.35,0.00019917,2]
[311862776,1705476933822,150.0,0.00019917,2]
[311862777,1705476933842,26.65,0.00019917,2]
[311862778,1705476977987,150.0,0.0002,2]
[311862779,1705476978011,150.0,0.0002,2]
[311862780,1705476978037,2396.32304493,0.0002,2]
[311862781,1705477142200,156.08,0.00018732,2]
[311862782,1705477511404,-164.78321963,0.00020502,2]
[311862783,1705477511436,-395.12021724,0.00020503,2]
[311862784,1705477511468,-240.98,0.00020506,2]
[311862785,1705477511499,-301.16,0.00020569,2]
[311862786,1705477511519,-160.29,0.00020592,2]
[311862787,1705477511528,-4.49321963,0.00020739,2]
[311862788,1705477511545,-156.44678037,0.00020739,2]
[311862789,1705477511554,-167.08,0.00020806,2]
[311862790,1705477511563,-71.59343687,0.00020849,2]
[311862791,1705477511583,-78.40656313,0.00020849,2]
[311862792,1705477511592,-151.16,0.00020866,2]
[311862793,1705477511602,-11.41343687,0.00020938,2]
[311862794,1705477511631,-160.67656313,0.00020938,2]
[311862795,1705477511641,-140.48343687,0.00020996,2]
[311862796,1705477511660,-15.59656313,0.00020996,2]
[311862797,1705477511670,-23.31656313,0.00020996,2]
[311862798,1705477595013,-540.06302881,0.00020995,2]
[311862799,1705477595074,-1193.83050551,0.00020995,2]
[311862800,1705477718840,150.0,0.00018677,2]
[311862801,1705477718861,6.08,0.00018677,2]
[311862810,1705477832354,-500.0,0.000205,2]
[311862812,1705477832364,-642.99816628,0.00020611,2]
[311862814,1705477832376,-116.07183372,0.00020611,2]
[311862815,1705477832385,-151.07,0.00020804,2]
[311862817,1705477832396,-310.45333876,0.00020896,2]
[311862819,1705477832405,-151.07,0.00020959,2]
[311862820,1705477832415,-1102.04343687,0.00020995,2]
[311862822,1705477832425,-127.67343687,0.00020996,2]
[311862824,1705477832434,-630.22502103,0.00020996,2]
[311862826,1705477832464,-834.26875927,0.00020996,2]
[311862827,1705477832476,-721.06586441,0.00020996,2]
[311862828,1705477832487,-357.46371413,0.00020996,2]
[311862832,1705477832515,-763.01283785,0.00020996,2]
[311862834,1705477832526,-269.90724263,0.00020996,2]
[311862838,1705477832552,-5772.9160441,0.00020996,2]
[311862853,1705477833153,-2242.77160239,0.00020996,2]
[311862856,1705477833167,-3375.74039394,0.00020996,2]
[311862879,1705477838371,-310.4533387,0.00020959,2]
[311862880,1705477838381,-1437.98852025,0.00020996,2]
[311862881,1705477838390,-246.84065105,0.00020996,2]
[311862882,1705477838404,-856.11369737,0.00020996,2]
[311862883,1705477838485,-2201.12565158,0.00020996,2]
[311862884,1705477838494,-731.80988003,0.00021,2]
[311862885,1705477838505,-596.29,0.00021,2]
[311862886,1705477838514,-204.0,0.00021001,2]
[311862887,1705477838523,-151.07,0.00021114,2]
[311862888,1705477838533,-176.27,0.00021191,2]
[311862889,1705477838542,-264.61067402,0.00021191,2]
[311862890,1705477838552,-150.0,0.00021191,2]
[311862891,1705477838562,-156.08,0.00021207,2]
[311862892,1705477838572,-151.07,0.00021269,2]
[311862893,1705477838582,-156.64,0.0002138,2]
[311862894,1705477838591,-394.79147818,0.00021399,2]
[311862895,1705477838601,-499.99,0.00021409,2]
[311862896,1705477838610,-9999.99,0.00021409,2]
[311862897,1705477838619,-151.07,0.00021424,2]
[311862898,1705477838629,-240.98,0.00021484,2]
[311862899,1705477838638,-3352.2211,0.00021517,2]
[311862900,1705477838649,-654.4824,0.00021517,2]
[311862901,1705477838658,-2026.5976,0.00021517,2]
[311862902,1705477838667,-4310.22163215,0.00021517,2]
[311862903,1705477838684,-374.16160013,0.00021517,2]
[311862904,1705477838705,-11895.63086772,0.00021517,2]
[311862905,1705477838715,-151.07,0.00021579,2]
[311862906,1705477838726,-283.25,0.00021583,2]
[311862907,1705477838736,-300.0,0.000216,7]
[311862908,1705477838748,-158.25793825,0.00021613,2]
[311862909,1705477838762,-272.40603942,0.00021615,2]
[311862910,1705477838771,-176.06999417,0.00021615,2]
[311862911,1705477838782,-506.53059834,0.00021615,2]
[311862913,1705477838794,-1255.31698243,0.00021615,2]
[311862915,1705477838812,-1764.41631424,0.00021615,2]
[311862917,1705477838822,-238.62522495,0.00021615,2]
[311862918,1705477838840,-194.76896332,0.00021616,2]
[311862920,1705477838850,-6285.19764115,0.00021617,2]
[311862922,1705477838862,-30941.39495468,0.00021617,2]
[311863170,1705477841256,-1054.65589234,0.00021617,2]
[311863194,1705477841482,-343.63380356,0.00021617,2]
[311863396,1705477843408,-310.4533387,0.00021022,2]
[311863399,1705477843417,-60.86848994,0.00021617,2]
[311863406,1705477843475,-134874.62231833,0.00021617,2]
[311863408,1705477843484,-382.46578038,0.00021617,2]
[311863410,1705477843493,-200.23,0.00021644,2]
[311863412,1705477843503,-283.25,0.00021697,2]
[311863414,1705477843512,-600.0,0.000217,7]
[311863416,1705477843521,-155.0,0.00021715,2]
[311863418,1705477843530,-336.72616794,0.00021715,2]
[311863420,1705477843540,-193.45390232,0.00021716,2]
[311863422,1705477843549,-652.74,0.00021716,2]
[311863424,1705477843558,-156.739,0.00021717,2]
[311863426,1705477843567,-39797.5924,0.00021717,2]
[311863428,1705477843576,-100000.0,0.00021717,2]
[311863430,1705477843586,-15505.6314,0.00021717,2]
[311863432,1705477843595,-3835.2056,0.00021717,2]
[311863434,1705477843604,-1000.0,0.00021717,2]
[311863436,1705477843613,-857.8995,0.00021717,2]
[311863438,1705477843622,-151.07,0.00021734,2]
[311863440,1705477843632,-176.27,0.00021739,2]
[311863442,1705477843641,-284.64871964,0.00021739,2]
[311863444,1705477843652,-1000.0,0.000218,7]
[311863446,1705477843662,-639.81,0.000218,2]
[311863448,1705477843672,-283.25,0.0002181,2]
[311863450,1705477843681,-1664.8494,0.00021816,2]
[311863452,1705477843691,-250.0,0.00021817,2]
[311863454,1705477843701,-382.46578036,0.00021854,2]
[311863456,1705477843711,-151.07,0.00021888,2]
[311863458,1705477843721,-16902.48509825,0.00021899,2]
[311863461,1705477843730,-1300.0,0.000219,7]
[311863463,1705477843743,-84601.94550318,0.000219,2]
[311863464,1705477843752,-8156.26,0.000219,2]
[311863467,1705477843762,-733.82246284,0.00021915,2]
[311863469,1705477843772,-160.05458774,0.00021915,2]
[311863471,1705477843782,-544.65557773,0.00021915,2]
[311863473,1705477843791,-214.25314506,0.00021916,2]
[311863475,1705477843800,-391.44758697,0.00021916,2]
[311863477,1705477843810,-7549.24261303,0.00021916,2]
[311863479,1705477843819,-194.66471001,0.00021916,2]
[311863481,1705477843832,-304.80744323,0.00021916,2]
[311863483,1705477843843,-874.93955406,0.00021916,2]
[311863485,1705477843852,-500.0,0.00021917,2]
[311863487,1705477843862,-264.47552202,0.00021917,2]
[311863489,1705477843871,-500.0,0.00021917,2]
[311863491,1705477843879,-184.7474101,0.00021917,2]
[311863493,1705477843889,-500.0,0.00021917,2]
[311863494,1705477843900,-500.0,0.00021917,2]
[311863495,1705477843912,-500.0,0.00021917,2]
[311863496,1705477843920,-500.0,0.00021917,2]
[311863497,1705477843930,-500.0,0.00021917,2]
[311863498,1705477843939,-164.15792037,0.00021917,2]
[311863499,1705477843948,-500.0,0.00021917,2]
[311863500,1705477843957,-500.0,0.00021917,2]
[311863502,1705477843966,-500.0,0.00021917,2]
[311863504,1705477843975,-500.0,0.00021917,2]
[311863506,1705477843984,-500.0,0.00021917,2]
[311863508,1705477843993,-598.07,0.00021917,2]
[311863510,1705477844002,-500.0,0.00021917,2]
[311863512,1705477844011,-500.0,0.00021917,2]
[311863514,1705477844020,-579.11,0.00021917,2]
[311863516,1705477844029,-500.0,0.00021917,2]
[311863518,1705477844038,-541.55,0.00021917,2]
[311863520,1705477844047,-217.07198997,0.00021917,2]
[311863522,1705477844057,-521.27734168,0.00021917,2]
[311863524,1705477844066,-500.0,0.00021917,2]
[311863526,1705477844075,-500.0,0.00021917,2]
[311863528,1705477844084,-500.0,0.00021917,2]
[311863530,1705477844093,-500.0,0.00021917,2]
[311863532,1705477844102,-500.0,0.00021917,2]
[311863534,1705477844111,-500.0,0.00021917,2]
[311863536,1705477844120,-500.0,0.00021917,2]
[311863538,1705477844130,-500.0,0.00021917,2]
[311863540,1705477844139,-500.0,0.00021917,2]
[311863542,1705477844149,-500.0,0.00021917,2]
[311863544,1705477844158,-500.0,0.00021917,2]
[311863546,1705477844167,-500.0,0.00021917,2]
[311863548,1705477844176,-526.97,0.00021917,2]
[311863550,1705477844185,-500.0,0.00021917,2]
[311863552,1705477844194,-500.0,0.00021917,2]
[311863554,1705477844203,-500.0,0.00021917,2]
[311863556,1705477844212,-500.0,0.00021917,2]
[311863558,1705477844221,-500.0,0.00021917,2]
[311863560,1705477844230,-645.97,0.00021917,2]
[311863562,1705477844239,-663.68,0.00021917,2]
[311863564,1705477844248,-500.0,0.00021917,2]
[311863566,1705477844257,-721.97,0.00021917,2]
[311863568,1705477844267,-502.64916283,0.00021917,2]
[311863570,1705477844276,-500.0,0.00021917,2]
[311863572,1705477844285,-500.0,0.00021917,2]
[311863574,1705477844295,-500.0,0.00021917,2]
[311863576,1705477844304,-500.0,0.00021917,2]
[311863578,1705477844313,-500.0,0.00021917,2]
[311863581,1705477844323,-500.0,0.00021917,2]
[311863582,1705477844332,-383.50124325,0.00021917,2]
[311863585,1705477844342,-936.47,0.00021917,2]
[311863586,1705477844351,-462.64947192,0.00021917,2]
[311863589,1705477844361,-500.0,0.00021917,2]
[311863591,1705477844370,-500.0,0.00021917,2]
[311863593,1705477844378,-500.0,0.00021917,2]
[311863595,1705477844388,-500.0,0.00021917,2]
[311863597,1705477844397,-250.01399037,0.00021917,2]
[311863598,1705477844406,-500.0,0.00021917,2]
[311863601,1705477844415,-589.05,0.00021917,2]
[311863602,1705477844425,-500.0,0.00021917,2]
[311863605,1705477844434,-500.0,0.00021917,2]
[311863607,1705477844444,-666.97,0.00021917,2]
[311863609,1705477844453,-436.64011127,0.00021917,2]
[311863611,1705477844462,-500.0,0.00021917,2]
[311863613,1705477844472,-500.0,0.00021917,2]
[311863615,1705477844481,-500.0,0.00021917,2]
[311863617,1705477844495,-500.0,0.00021917,2]
[311863619,1705477844505,-248.84357785,0.00021917,2]
[311863621,1705477844514,-181.50208039,0.00021917,2]
[311863632,1705477844608,-594.13,0.00021917,2]
[311863634,1705477844618,-500.0,0.00021917,2]
[311863636,1705477844628,-500.0,0.00021917,2]
[311863638,1705477844637,-500.0,0.00021917,2]
[311863641,1705477844647,-500.0,0.00021917,2]
[311863642,1705477844659,-500.0,0.00021917,2]
[311863644,1705477844669,-500.0,0.00021917,2]
[311863646,1705477844679,-500.0,0.00021917,2]
[311863648,1705477844689,-435.46423424,0.00021917,2]
[311863651,1705477844699,-500.0,0.00021917,2]
[311863653,1705477844709,-427.54710157,0.00021917,2]
[311863654,1705477844718,-500.0,0.00021917,2]
[311863656,1705477844727,-500.0,0.00021917,2]
[311863658,1705477844736,-500.0,0.00021917,2]
[311863660,1705477844747,-500.0,0.00021917,2]
[311863663,1705477844757,-662.02,0.00021917,2]
[311863665,1705477844766,-500.0,0.00021917,2]
[311863666,1705477844776,-501.4369607,0.00021917,2]
[311863668,1705477844785,-500.0,0.00021917,2]
[311863671,1705477844796,-500.0,0.00021917,2]
[311863673,1705477844806,-500.0,0.00021917,2]
[311863675,1705477844815,-699.96,0.00021917,2]
[311863677,1705477844826,-500.0,0.00021917,2]
[311863679,1705477844835,-880.69,0.00021917,2]
[311863681,1705477844844,-500.0,0.00021917,2]
[311863682,1705477844853,-500.0,0.00021917,2]
[311863685,1705477844862,-500.0,0.00021917,2]
[311863687,1705477844871,-500.0,0.00021917,2]
[311863688,1705477844880,-500.0,0.00021917,2]
[311863690,1705477844889,-319.33137776,0.00021917,2]
[311863692,1705477844900,-500.0,0.00021917,2]
[311863695,1705477844910,-150.19056511,0.00021917,2]
[311863697,1705477844920,-500.0,0.00021917,2]
[311863699,1705477844930,-500.0,0.00021917,2]
[311863700,1705477844942,-500.0,0.00021917,2]
[311863703,1705477844953,-500.0,0.00021917,2]
[311863705,1705477844962,-578.94,0.00021917,2]
[311863706,1705477844972,-500.0,0.00021917,2]
[311863708,1705477844982,-500.0,0.00021917,2]
[311863711,1705477844994,-314.40084308,0.00021917,2]
[311863713,1705477845004,-500.0,0.00021917,2]
[311863715,1705477845013,-550.1,0.00021917,2]
[311863717,1705477845021,-500.0,0.00021917,2]
[311863718,1705477845030,-500.0,0.00021917,2]
[311863720,1705477845039,-500.0,0.00021917,2]
[311863722,1705477845049,-844.6,0.00021917,2]
[311863725,1705477845058,-500.0,0.00021917,2]
[311863727,1705477845067,-500.0,0.00021917,2]
[311863728,1705477845076,-500.0,0.00021917,2]
[311863730,1705477845087,-500.0,0.00021917,2]
[311863732,1705477845097,-500.0,0.00021917,2]
[311863734,1705477845106,-1263.61,0.00021917,2]
[311863737,1705477845116,-500.0,0.00021917,2]
[311863739,1705477845124,-500.0,0.00021917,2]
[311863741,1705477845134,-500.0,0.00021917,2]
[311863743,1705477845142,-500.0,0.00021917,2]
[311863745,1705477845153,-1132.4,0.00021917,2]
[311863747,1705477845162,-1281.36,0.00021917,2]
[311863749,1705477845171,-500.0,0.00021917,2]
[311863751,1705477845180,-500.0,0.00021917,2]
[311863752,1705477845190,-500.0,0.00021917,2]
[311863754,1705477845199,-500.0,0.00021917,2]
[311863756,1705477845208,-500.0,0.00021917,2]
[311863758,1705477845218,-671.9,0.00021917,2]
[311863760,1705477845227,-574.93,0.00021917,2]
[311863763,1705477845237,-791.05,0.00021917,2]
[311863765,1705477845247,-500.0,0.00021917,2]
[311863766,1705477845257,-500.0,0.00021917,2]
[311863769,1705477845267,-566.71,0.00021917,2]
[311863770,1705477845276,-500.0,0.00021917,2]
[311863772,1705477845285,-500.0,0.00021917,2]
[311863775,1705477845294,-933.38,0.00021917,2]
[311863776,1705477845303,-500.0,0.00021917,2]
[311863778,1705477845312,-500.0,0.00021917,2]
[311863780,1705477845322,-1433.81,0.00021917,2]
[311863782,1705477845331,-785.23,0.00021917,2]
[311863784,1705477845341,-543.18727555,0.00021917,2]
[311863786,1705477845350,-500.0,0.00021917,2]
[311863788,1705477845360,-500.0,0.00021917,2]
[311863790,1705477845369,-500.0,0.00021917,2]
[311863791,1705477845377,-500.0,0.00021917,2]
[311863792,1705477845386,-719.9,0.00021917,2]
[311863793,1705477845395,-500.0,0.00021917,2]
[311863794,1705477845404,-500.0,0.00021917,2]
[311863795,1705477845412,-679.03,0.00021917,2]
[311863796,1705477845421,-687.55,0.00021917,2]
[311863797,1705477845430,-500.0,0.00021917,2]
[311863799,1705477845439,-500.0,0.00021917,2]
[311863801,1705477845448,-500.0,0.00021917,2]
[311863803,1705477845457,-1081.0,0.00021917,2]
[311863805,1705477845466,-500.0,0.00021917,2]
[311863807,1705477845475,-500.0,0.00021917,2]
[311863809,1705477845484,-501.6400085,0.00021917,2]
[311863811,1705477845493,-1916.77,0.00021917,2]
[311863813,1705477845501,-216.81556658,0.00021917,2]
[311863815,1705477845511,-507.34,0.00021917,2]
[311863817,1705477845520,-1443.84,0.00021917,2]
[311863819,1705477845529,-710.95,0.00021917,2]
[311863821,1705477845538,-500.0,0.00021917,2]
[311863823,1705477845550,-500.0,0.00021917,2]
[311863825,1705477845559,-500.0,0.00021917,2]
[311863827,1705477845569,-500.0,0.00021917,2]
[311863829,1705477845578,-500.0,0.00021917,2]
[311863831,1705477845587,-500.0,0.00021917,2]
[311863833,1705477845595,-1130.94,0.00021917,2]
[311863835,1705477845605,-907.75,0.00021917,2]
[311863837,1705477845614,-543.71523229,0.00021917,2]
[311863840,1705477845623,-500.0,0.00021917,2]
[311863841,1705477845633,-559.73,0.00021917,2]
[311863843,1705477845642,-500.0,0.00021917,2]
[311863846,1705477845654,-500.0,0.00021917,2]
[311863848,1705477845663,-994.48,0.00021917,2]
[311863850,1705477845672,-500.0,0.00021917,2]
[311863852,1705477845682,-500.0,0.00021917,2]
[311863854,1705477845691,-500.0,0.00021917,2]
[311863856,1705477845700,-500.0,0.00021917,2]
[311863858,1705477845709,-924.59,0.00021917,2]
[311863860,1705477845718,-500.0,0.00021917,2]
[311863862,1705477845727,-500.0,0.00021917,2]
[311863864,1705477845736,-500.0,0.00021917,2]
[311863866,1705477845748,-500.0,0.00021917,2]
[311863868,1705477845758,-603.7,0.00021917,2]
[311863870,1705477845767,-1069.5,0.00021917,2]
[311863872,1705477845776,-500.0,0.00021917,2]
[311863874,1705477845786,-1140.4,0.00021917,2]
[311863875,1705477845795,-500.0,0.00021917,2]
[311863877,1705477845804,-500.0,0.00021917,2]
[311863880,1705477845814,-500.0,0.00021917,2]
[311863881,1705477845826,-500.0,0.00021917,2]
[311863884,1705477845837,-1305.91,0.00021917,2]
[311863886,1705477845846,-500.0,0.00021917,2]
[311863888,1705477845856,-500.0,0.00021917,2]
[311863889,1705477845865,-500.0,0.00021917,2]
[311863890,1705477845875,-832.33,0.00021917,2]
[311863891,1705477845885,-550.66,0.00021917,2]
[311863892,1705477845894,-500.0,0.00021917,2]
[311863893,1705477845905,-500.0,0.00021917,2]
[311863894,1705477845916,-500.0,0.00021917,2]
[311863895,1705477845926,-887.37,0.00021917,2]
[311863896,1705477845935,-500.0,0.00021917,2]
[311863897,1705477845945,-500.0,0.00021917,2]
[311863898,1705477845954,-500.0,0.00021917,2]
[311863900,1705477845963,-701.83,0.00021917,2]
[311863902,1705477845974,-502.94013346,0.00021917,2]
[311863904,1705477845983,-511.45173808,0.00021917,2]
[311863906,1705477845992,-500.0,0.00021917,2]
[311863908,1705477846001,-962.13,0.00021917,2]
[311863910,1705477846010,-1144.02,0.00021917,2]
[311863912,1705477846020,-500.0,0.00021917,2]
[311863913,1705477846029,-993.62,0.00021917,2]
[311863914,1705477846039,-602.44,0.00021917,2]
[311863915,1705477846048,-500.0,0.00021917,2]
[311863916,1705477846057,-917.54,0.00021917,2]
[311863917,1705477846067,-1428.95,0.00021917,2]
[311863918,1705477846076,-500.0,0.00021917,2]
[311863919,1705477846085,-648.82,0.00021917,2]
[311863920,1705477846095,-1583.9,0.00021917,2]
[311863921,1705477846104,-500.0,0.00021917,2]
[311863922,1705477846113,-712.9,0.00021917,2]
[311863923,1705477846123,-1029.38,0.00021917,2]
[311863924,1705477846132,-1329.46,0.00021917,2]
[311863925,1705477846142,-852.52,0.00021917,2]
[311863926,1705477846152,-818.61,0.00021917,2]
[311863927,1705477846162,-500.0,0.00021917,2]
[311863928,1705477846171,-1444.51,0.00021917,2]
[311863929,1705477846180,-603.96,0.00021917,2]
[311863930,1705477846190,-1364.51,0.00021917,2]
[311863931,1705477846199,-500.0,0.00021917,2]
[311863932,1705477846208,-500.0,0.00021917,2]
[311863933,1705477846217,-500.0,0.00021917,2]
[311863934,1705477846227,-1295.78,0.00021917,2]
[311863935,1705477846237,-500.0,0.00021917,2]
[311863937,1705477846247,-748.34,0.00021917,2]
[311863939,1705477846256,-1378.47,0.00021917,2]
[311863940,1705477846266,-910.22,0.00021917,2]
[311863941,1705477846275,-977.16,0.00021917,2]
[311863942,1705477846285,-520.64168109,0.00021917,2]
[311863943,1705477846295,-500.0,0.00021917,2]